{"text_format":"1","workbook":"xlsx","n_sheets":3,"sheets":["Поступившие","KPI","Лист3"],"not_rendered":{"charts":0,"images":0,"macros":1,"external_links":0,"defined_names":1,"comments":0,"pivot_tables":0},"unopened":[],"bounds":{"document_bytes":16777216,"sheet_cells":100000,"rows_first":2000,"rows_last":500,"rows_between":2000,"halvings":0,"cell_chars":16384,"cell_head_chars":4096},"cells_cut":0,"cells_raw":0,"read":"whole","date_system":"1900"}

{"sheet":"Поступившие","index":0,"n_rows":34,"n_cols":13,"rows_kept":34,"cut":false,"hidden":false,"merged":[]}
[]
[]
[]
[]
[null,null,null,null,null,null,null,"Воробьев",null,null,"2013-05-23"]
[null,null,null,null,null,null,null,"Иванов",null,null,"2013-05-24"]
[null,null,null,null,null,null,null,"Сидоров",null,null,"2013-05-25"]
[null,null,null,null,null,null,null,"Петров",null,null,"2013-05-26"]
[null,null,null,null,null,null,null,"Воробьев",null,null,"2013-05-27"]
[null,null,null,null,null,null,null,"Петров",null,null,"2013-05-28"]
[null,null,null,null,null,null,null,"Петров",null,null,"2013-05-29"]
[null,null,null,null,null,null,null,"Петров",null,null,"2013-05-30"]
[null,null,null,null,null,null,null,"Сидоров",null,null,"2013-08-02",null,"2013-08-07"]
[null,null,null,null,null,null,null,"Сидоров",null,null,null,null,"2013-08-08"]
[null,null,null,null,null,null,null,"Сидоров",null,null,null,null,"2013-08-09"]
[null,null,null,null,null,null,null,"Сидоров",null,null,null,null,"2013-08-10"]
[null,null,null,null,null,null,null,"Сидоров",null,null,"2013-08-01",null,"2013-08-12"]
[null,null,null,null,null,null,null,"Иванов"]
[null,null,null,null,null,null,null,"Иванов"]
[null,null,null,null,null,null,null,"Иванов"]
[null,null,null,null,null,null,null,"Иванов",null,null,"2013-08-15"]
[null,null,null,null,null,null,null,"Иванов",null,null,"2013-10-09"]
[null,null,null,null,null,null,null,"Воробьев",null,null,"2013-10-10"]
[null,null,null,null,null,null,null,"Семенов",null,null,"2013-10-11"]
[null,null,null,null,null,null,null,"Семенов",null,null,"2013-10-12"]
[null,null,null,null,null,null,null,"Семенов",null,null,"2013-10-13"]
[null,null,null,null,null,null,null,"Семенов",null,null,"2013-10-14"]
[null,null,null,null,null,null,null,"Семенов",null,null,"2013-10-15"]
[null,null,null,null,null,null,null,"Петров",null,null,"2013-12-23"]
[null,null,null,null,null,null,null,"Семенов",null,null,"2013-12-24"]
[null,null,null,null,null,null,null,"Александров",null,null,"2013-12-25"]
[null,null,null,null,null,null,null,"Александров",null,null,"2013-12-26"]
[null,null,null,null,null,null,null,"Александров",null,null,"2013-12-27"]
[null,null,null,null,null,null,null,"Воробьев",null,null,"2013-12-28"]

{"sheet":"KPI","index":1,"n_rows":11,"n_cols":13,"rows_kept":11,"cut":false,"hidden":false,"merged":[]}
[null,null,null,null,null,null,null,null,"2013-12-24"]
[null,null,null,"2013-08-01"]
[]
[null,null,null,"2013-03-01","2013-04-01","2013-05-01","2013-06-01","2013-07-01","2013-08-01","2013-09-01","2013-10-01","2013-11-01","2013-12-01"]
[null,null,"Петров",{"$f":"SUMPRODUCT((MONTH(D$4)=MONTH(Поступившие!$K$5:$K$34))*(Поступившие!$H$5:$H$34=$C5))","v":0},{"$f":"SUMPRODUCT((MONTH(E$4)=MONTH(Поступившие!$K$5:$K$34))*(Поступившие!$H$5:$H$34=$C5))","v":0},{"$f":"SUMPRODUCT((MONTH(F$4)=MONTH(Поступившие!$K$5:$K$34))*(Поступившие!$H$5:$H$34=$C5))","v":4},{"$f":"SUMPRODUCT((MONTH(G$4)=MONTH(Поступившие!$K$5:$K$34))*(Поступившие!$H$5:$H$34=$C5))","v":0},{"$f":"SUMPRODUCT((MONTH(H$4)=MONTH(Поступившие!$K$5:$K$34))*(Поступившие!$H$5:$H$34=$C5))","v":0},{"$f":"SUMPRODUCT((MONTH(I$4)=MONTH(Поступившие!$K$5:$K$34))*(Поступившие!$H$5:$H$34=$C5))","v":0},{"$f":"SUMPRODUCT((MONTH(J$4)=MONTH(Поступившие!$K$5:$K$34))*(Поступившие!$H$5:$H$34=$C5))","v":0},{"$f":"SUMPRODUCT((MONTH(K$4)=MONTH(Поступившие!$K$5:$K$34))*(Поступившие!$H$5:$H$34=$C5))","v":0},{"$f":"SUMPRODUCT((MONTH(L$4)=MONTH(Поступившие!$K$5:$K$34))*(Поступившие!$H$5:$H$34=$C5))","v":0},{"$f":"SUMPRODUCT((MONTH(M$4)=MONTH(Поступившие!$K$5:$K$34))*(Поступившие!$H$5:$H$34=$C5))","v":1}]
[null,null,"Иванов",{"$f":"SUMPRODUCT((MONTH(D$4)=MONTH(Поступившие!$K$5:$K$34))*(Поступившие!$H$5:$H$34=$C6))","v":0},{"$f":"SUMPRODUCT((MONTH(E$4)=MONTH(Поступившие!$K$5:$K$34))*(Поступившие!$H$5:$H$34=$C6))","v":0},{"$f":"SUMPRODUCT((MONTH(F$4)=MONTH(Поступившие!$K$5:$K$34))*(Поступившие!$H$5:$H$34=$C6))","v":1},{"$f":"SUMPRODUCT((MONTH(G$4)=MONTH(Поступившие!$K$5:$K$34))*(Поступившие!$H$5:$H$34=$C6))","v":0},{"$f":"SUMPRODUCT((MONTH(H$4)=MONTH(Поступившие!$K$5:$K$34))*(Поступившие!$H$5:$H$34=$C6))","v":0},{"$f":"SUMPRODUCT((MONTH(I$4)=MONTH(Поступившие!$K$5:$K$34))*(Поступившие!$H$5:$H$34=$C6))","v":1},{"$f":"SUMPRODUCT((MONTH(J$4)=MONTH(Поступившие!$K$5:$K$34))*(Поступившие!$H$5:$H$34=$C6))","v":0},{"$f":"SUMPRODUCT((MONTH(K$4)=MONTH(Поступившие!$K$5:$K$34))*(Поступившие!$H$5:$H$34=$C6))","v":1},{"$f":"SUMPRODUCT((MONTH(L$4)=MONTH(Поступившие!$K$5:$K$34))*(Поступившие!$H$5:$H$34=$C6))","v":0},{"$f":"SUMPRODUCT((MONTH(M$4)=MONTH(Поступившие!$K$5:$K$34))*(Поступившие!$H$5:$H$34=$C6))","v":0}]
[null,null,null,{"$f":"SUMPRODUCT((MONTH(D$4)=MONTH(Поступившие!$K$5:$K$34))*(Поступившие!$H$5:$H$34=$C7))","v":0},{"$f":"SUMPRODUCT((MONTH(E$4)=MONTH(Поступившие!$K$5:$K$34))*(Поступившие!$H$5:$H$34=$C7))","v":0},{"$f":"SUMPRODUCT((MONTH(F$4)=MONTH(Поступившие!$K$5:$K$34))*(Поступившие!$H$5:$H$34=$C7))","v":0},{"$f":"SUMPRODUCT((MONTH(G$4)=MONTH(Поступившие!$K$5:$K$34))*(Поступившие!$H$5:$H$34=$C7))","v":0},{"$f":"SUMPRODUCT((MONTH(H$4)=MONTH(Поступившие!$K$5:$K$34))*(Поступившие!$H$5:$H$34=$C7))","v":0},{"$f":"SUMPRODUCT((MONTH(I$4)=MONTH(Поступившие!$K$5:$K$34))*(Поступившие!$H$5:$H$34=$C7))","v":0},{"$f":"SUMPRODUCT((MONTH(J$4)=MONTH(Поступившие!$K$5:$K$34))*(Поступившие!$H$5:$H$34=$C7))","v":0},{"$f":"SUMPRODUCT((MONTH(K$4)=MONTH(Поступившие!$K$5:$K$34))*(Поступившие!$H$5:$H$34=$C7))","v":0},{"$f":"SUMPRODUCT((MONTH(L$4)=MONTH(Поступившие!$K$5:$K$34))*(Поступившие!$H$5:$H$34=$C7))","v":0},{"$f":"SUMPRODUCT((MONTH(M$4)=MONTH(Поступившие!$K$5:$K$34))*(Поступившие!$H$5:$H$34=$C7))","v":0}]
[null,null,null,{"$f":"SUMPRODUCT((MONTH(D$4)=MONTH(Поступившие!$K$5:$K$34))*(Поступившие!$H$5:$H$34=$C8))","v":0},{"$f":"SUMPRODUCT((MONTH(E$4)=MONTH(Поступившие!$K$5:$K$34))*(Поступившие!$H$5:$H$34=$C8))","v":0},{"$f":"SUMPRODUCT((MONTH(F$4)=MONTH(Поступившие!$K$5:$K$34))*(Поступившие!$H$5:$H$34=$C8))","v":0},{"$f":"SUMPRODUCT((MONTH(G$4)=MONTH(Поступившие!$K$5:$K$34))*(Поступившие!$H$5:$H$34=$C8))","v":0},{"$f":"SUMPRODUCT((MONTH(H$4)=MONTH(Поступившие!$K$5:$K$34))*(Поступившие!$H$5:$H$34=$C8))","v":0},{"$f":"SUMPRODUCT((MONTH(I$4)=MONTH(Поступившие!$K$5:$K$34))*(Поступившие!$H$5:$H$34=$C8))","v":0},{"$f":"SUMPRODUCT((MONTH(J$4)=MONTH(Поступившие!$K$5:$K$34))*(Поступившие!$H$5:$H$34=$C8))","v":0},{"$f":"SUMPRODUCT((MONTH(K$4)=MONTH(Поступившие!$K$5:$K$34))*(Поступившие!$H$5:$H$34=$C8))","v":0},{"$f":"SUMPRODUCT((MONTH(L$4)=MONTH(Поступившие!$K$5:$K$34))*(Поступившие!$H$5:$H$34=$C8))","v":0},{"$f":"SUMPRODUCT((MONTH(M$4)=MONTH(Поступившие!$K$5:$K$34))*(Поступившие!$H$5:$H$34=$C8))","v":0}]
[null,null,null,{"$f":"SUMPRODUCT((MONTH(D$4)=MONTH(Поступившие!$K$5:$K$34))*(Поступившие!$H$5:$H$34=$C9))","v":0},{"$f":"SUMPRODUCT((MONTH(E$4)=MONTH(Поступившие!$K$5:$K$34))*(Поступившие!$H$5:$H$34=$C9))","v":0},{"$f":"SUMPRODUCT((MONTH(F$4)=MONTH(Поступившие!$K$5:$K$34))*(Поступившие!$H$5:$H$34=$C9))","v":0},{"$f":"SUMPRODUCT((MONTH(G$4)=MONTH(Поступившие!$K$5:$K$34))*(Поступившие!$H$5:$H$34=$C9))","v":0},{"$f":"SUMPRODUCT((MONTH(H$4)=MONTH(Поступившие!$K$5:$K$34))*(Поступившие!$H$5:$H$34=$C9))","v":0},{"$f":"SUMPRODUCT((MONTH(I$4)=MONTH(Поступившие!$K$5:$K$34))*(Поступившие!$H$5:$H$34=$C9))","v":0},{"$f":"SUMPRODUCT((MONTH(J$4)=MONTH(Поступившие!$K$5:$K$34))*(Поступившие!$H$5:$H$34=$C9))","v":0},{"$f":"SUMPRODUCT((MONTH(K$4)=MONTH(Поступившие!$K$5:$K$34))*(Поступившие!$H$5:$H$34=$C9))","v":0},{"$f":"SUMPRODUCT((MONTH(L$4)=MONTH(Поступившие!$K$5:$K$34))*(Поступившие!$H$5:$H$34=$C9))","v":0},{"$f":"SUMPRODUCT((MONTH(M$4)=MONTH(Поступившие!$K$5:$K$34))*(Поступившие!$H$5:$H$34=$C9))","v":0}]
[null,null,null,{"$f":"SUMPRODUCT((MONTH(D$4)=MONTH(Поступившие!$K$5:$K$34))*(Поступившие!$H$5:$H$34=$C10))","v":0},{"$f":"SUMPRODUCT((MONTH(E$4)=MONTH(Поступившие!$K$5:$K$34))*(Поступившие!$H$5:$H$34=$C10))","v":0},{"$f":"SUMPRODUCT((MONTH(F$4)=MONTH(Поступившие!$K$5:$K$34))*(Поступившие!$H$5:$H$34=$C10))","v":0},{"$f":"SUMPRODUCT((MONTH(G$4)=MONTH(Поступившие!$K$5:$K$34))*(Поступившие!$H$5:$H$34=$C10))","v":0},{"$f":"SUMPRODUCT((MONTH(H$4)=MONTH(Поступившие!$K$5:$K$34))*(Поступившие!$H$5:$H$34=$C10))","v":0},{"$f":"SUMPRODUCT((MONTH(I$4)=MONTH(Поступившие!$K$5:$K$34))*(Поступившие!$H$5:$H$34=$C10))","v":0},{"$f":"SUMPRODUCT((MONTH(J$4)=MONTH(Поступившие!$K$5:$K$34))*(Поступившие!$H$5:$H$34=$C10))","v":0},{"$f":"SUMPRODUCT((MONTH(K$4)=MONTH(Поступившие!$K$5:$K$34))*(Поступившие!$H$5:$H$34=$C10))","v":0},{"$f":"SUMPRODUCT((MONTH(L$4)=MONTH(Поступившие!$K$5:$K$34))*(Поступившие!$H$5:$H$34=$C10))","v":0},{"$f":"SUMPRODUCT((MONTH(M$4)=MONTH(Поступившие!$K$5:$K$34))*(Поступившие!$H$5:$H$34=$C10))","v":0}]
[null,null,null,{"$f":"SUMPRODUCT((MONTH(D$4)=MONTH(Поступившие!$K$5:$K$34))*(Поступившие!$H$5:$H$34=$C11))","v":0},{"$f":"SUMPRODUCT((MONTH(E$4)=MONTH(Поступившие!$K$5:$K$34))*(Поступившие!$H$5:$H$34=$C11))","v":0},{"$f":"SUMPRODUCT((MONTH(F$4)=MONTH(Поступившие!$K$5:$K$34))*(Поступившие!$H$5:$H$34=$C11))","v":0},{"$f":"SUMPRODUCT((MONTH(G$4)=MONTH(Поступившие!$K$5:$K$34))*(Поступившие!$H$5:$H$34=$C11))","v":0},{"$f":"SUMPRODUCT((MONTH(H$4)=MONTH(Поступившие!$K$5:$K$34))*(Поступившие!$H$5:$H$34=$C11))","v":0},{"$f":"SUMPRODUCT((MONTH(I$4)=MONTH(Поступившие!$K$5:$K$34))*(Поступившие!$H$5:$H$34=$C11))","v":0},{"$f":"SUMPRODUCT((MONTH(J$4)=MONTH(Поступившие!$K$5:$K$34))*(Поступившие!$H$5:$H$34=$C11))","v":0},{"$f":"SUMPRODUCT((MONTH(K$4)=MONTH(Поступившие!$K$5:$K$34))*(Поступившие!$H$5:$H$34=$C11))","v":0},{"$f":"SUMPRODUCT((MONTH(L$4)=MONTH(Поступившие!$K$5:$K$34))*(Поступившие!$H$5:$H$34=$C11))","v":0},{"$f":"SUMPRODUCT((MONTH(M$4)=MONTH(Поступившие!$K$5:$K$34))*(Поступившие!$H$5:$H$34=$C11))","v":0}]

{"sheet":"Лист3","index":2,"n_rows":0,"n_cols":0,"rows_kept":0,"cut":false,"hidden":false,"merged":[]}